Cogmind - Beta 14 @@@ ROGUE MODE // 2024.10.12 @ 02:32:10 Player: THN-L0C Result: Core destroyed Performance ------------- Evolutions (8) 4000 Regions Visited (23) 4600 Robots Destroyed (213) 1065 Value Destroyed (8538) 8538 Prototype IDs (58) 1160 Alien Tech Used (18) 3600 Bonus (11496) 11496 TOTAL SCORE: 34459 Bonus ------- Triggered Max Security 1000 High Alert Combat Kills 489 Follower Combat Kills 2295 Aligned with FarCom 300 Met Zhirov 300 Built Enhanced Grunts 300 Met R17 at Cetus 500 Used Core Reset Matrix 3000 Met R17 at Research 2000 Integrated Exoskeleton 5000 Friendly Fire -3688 Cogmind --------- Core Integrity 0/1450 Matter 300/300 Energy 450/450 System Corruption 5% Temperature Cool (0) Movement Walking (30) Location -2/Section 7 Parts ------- > --- POWER (3) -------- (None) > --- PROPULSION (4) --- Sigix Exoskeleton > --- UTILITY (3) ------ High-capacity Storage Unit Experimental Targeting Computer Spacefold Activator > --- WEAPON (2) ------- Sigix Sheargun Sigix Sheargun (fused) > --- INVENTORY (22) --- Matter Drive Myomer Exoskeleton Advanced Energy Well (500) Advanced Target Analyzer Transdimensional Reconstructor Core Regenerator Integrity Redistributor Integrated Thermoelectric Network Subatomic Replicator Terrabomb Core Physics Calibrator Sigix Sheargun Sigix Sheargun Core Cannon Field Lobotomy Kit (1) Vibroblade Sigix Broadsword Peak State ------------ > --- POWER ------------ Matter Drive > --- PROPULSION ------- Sigix Exoskeleton > --- UTILITY ---------- High-capacity Storage Unit Experimental Targeting Computer Spacefold Activator > --- WEAPON ----------- Sigix Sheargun Sigix Sheargun > --- INVENTORY -------- Myomer Exoskeleton Advanced Energy Well Advanced Target Analyzer Advanced Target Analyzer Advanced Kinecellerator Transdimensional Reconstructor Core Regenerator Integrity Redistributor Subatomic Replicator Terrabomb Core Physics Calibrator Sigix Sheargun Sigix Sheargun Core Cannon Field Lobotomy Kit Vibroblade Sigix Broadsword [Rating: 258] Favorites ----------- Power Particle Reactor Engine Ion Engine Power Core Neutrino Core Reactor Particle Reactor Propulsion Centrium Heavy Treads Treads Centrium Heavy Treads Leg Carbon-fiber Leg Wheel Armored Huge Wheel Hover Unit Gravmag Array Flight Unit Field Propulsion Array Utility High-capacity Storage Unit Device Improved Cooling System Storage High-capacity Storage Unit Processor Improved Signal Interpreter Hackware Improved Hacking Suite Protection Centrium Medium Armor Plating Artifact Phase Redirector Weapon Advanced KE Penetrator Energy Gun Lightning Gun Energy Cannon Nova Cannon Ballistic Gun Advanced KE Penetrator Launcher Grenade Launcher Special Weapon Improved Plasma Cutter Impact Weapon Powered Hammer Slashing Weapon Vibroblade Build | -11 -10 -10 -10 -9 -8 -7 -6 -6 -6 -6 -6 -6 -5 -4 -4 -4 -4 -3 -3 -3 -2 -2 -2 ------- Run | Yrd Mat Min Exi Min Mat Fac Fac Was Fac Ext Cet Arc Fac Fac Upp Upp Zhi Pro Res Qua Res Tes Sec Slots Evolved 16 | . . . . . 4 2 2 . . . . . 2 2 . . . . 2 . 2 . . Power 1 | . . . . . . . 1 . . . . . . . . . . . . . . . . Propulsion 6 | . . . . . 1 . 1 . . . . . . . . . . . 2 . 2 . . Utility 8 | . . . . . 2 2 . . . . . . 2 2 . . . . . . . . . Weapon 1 | . . . . . 1 . . . . . . . . . . . . . . . . . . Parts Attached 409 | 7 11 2 6 . 20 35 17 1 10 21 24 29 36 14 6 10 5 7 31 25 37 32 23 Power 44 | 1 2 . . . 1 5 3 . 1 4 1 3 2 . . 4 1 . 4 3 5 1 3 Engine 10 | 1 2 . . . . 2 2 . . 2 1 . . . . . . . . . . . . Core 13 | . . . . . 1 3 1 . 1 2 . 2 2 . . 1 . . . . . . . Reactor 21 | . . . . . . . . . . . . 1 . . . 3 1 . 4 3 5 1 3 Propulsion 56 | 2 1 . 1 . 5 4 4 . 2 7 4 3 . 2 . 2 . . 2 5 4 7 1 Treads 21 | 2 1 . 1 . 4 1 2 . . . . 3 . 2 . 2 . . 2 1 . . . Leg 10 | . . . . . . . . . . 7 3 . . . . . . . . . . . . Wheel 3 | . . . . . 1 2 . . . . . . . . . . . . . . . . . Hover 2 | . . . . . . . 1 . . . 1 . . . . . . . . . . . . Flight 20 | . . . . . . 1 1 . 2 . . . . . . . . . . 4 4 7 1 Utility 197 | 2 3 1 2 . 6 12 7 1 5 5 12 10 26 12 1 4 4 3 18 14 23 18 8 Device 115 | 1 1 1 . . 2 7 4 . 1 3 5 4 20 7 1 1 2 3 12 10 18 9 3 Storage 26 | 1 1 . 2 . 2 1 1 1 . . 2 3 3 . . . . . 2 1 2 2 2 Processor 14 | . . . . . 1 . . . . . . 1 2 1 . . . . 2 . 1 4 2 Hackware 8 | . . . . . . . . . . . . 2 . 2 . . . . 1 . . 3 . Protection 32 | . 1 . . . 1 4 2 . 4 2 5 . 1 2 . 3 2 . 1 2 2 . . Artifact 2 | . . . . . . . . . . . . . . . . . . . . 1 . . 1 Weapon 112 | 2 5 1 3 . 8 14 3 . 2 5 7 13 8 . 5 . . 4 7 3 5 6 11 Energy Gun 36 | 2 2 . 3 . 7 10 . . . 4 5 1 1 . . . . . . . . . 1 Energy Cannon 17 | . . . . . . 1 1 . . . . . 1 . . . . 1 5 . . 2 6 Ballistic Gun 19 | . . . . . . . . . . . . 10 5 . 3 . . 1 . . . . . Ballistic Cannon . | . . . . . . . . . . . . . . . . . . . . . . . . Launcher 10 | . 2 . . . 1 2 1 . . . . . . . . . . . . 1 2 1 . Special Weapon 12 | . . 1 . . . . 1 . 1 . 1 2 . . . . . 2 1 . . . 3 Impact Weapon 6 | . 1 . . . . 1 . . 1 1 . . 1 . 1 . . . . . . . . Slashing Weapon 12 | . . . . . . . . . . . 1 . . . 1 . . . 1 2 3 3 1 Piercing Weapon . | . . . . . . . . . . . . . . . . . . . . . . . . Special Melee Weapon . | . . . . . . . . . . . . . . . . . . . . . . . . Unidentified Prototypes 24 | . . . . . 1 2 . . . . 1 4 3 . . . 3 . 2 3 1 3 1 Corrupted Parts 12 | . . . . . . . . . . 4 . 8 . . . . . . . . . . . System Corruption 58 | . . . . . . . . . . 23 . 35 . . . . . . . . . . . Parts Lost 48 | . . 1 . . . 7 11 . . 4 1 . . 1 . 1 . 6 2 5 3 3 3 Power 7 | . . . . . . 1 2 . . 1 1 . . . . . . . . 1 . 1 . Propulsion 9 | . . . . . . . 4 . . 2 . . . . . . . . . . 1 1 1 Utility 18 | . . 1 . . . 2 1 . . . . . . 1 . 1 . 3 1 3 2 1 2 Weapon 14 | . . . . . . 4 4 . . 1 . . . . . . . 3 1 1 . . . Highest Loss Streak 10 | . . 1 . . . 2 10 . . 3 1 . . 1 . 1 . 3 2 5 1 2 2 To Critical Strikes . | . . . . . . . . . . . . . . . . . . . . . . . . Average Slot Usage (%) 82 | . 99 100 100 100 97 89 48 20 29 65 77 83 88 87 89 88 87 79 84 80 64 59 48 Engine 3 | . 14 14 14 14 1 3 2 6 6 5 6 3 . . . . . . . . . . . Core 3 | . . . . . 7 3 3 . 2 5 5 5 7 10 10 5 5 5 1 . . . . Reactor 2 | . . . . . . . . . . . . 2 2 . . 4 5 5 7 8 7 3 2 Treads 11 | . 28 28 28 28 24 11 . . . . . 4 11 9 10 9 10 10 13 12 . . . Leg 3 | . . . . . . . . . . 20 26 16 . . . . . . . . . . 4 Flight 1 | . . . . . . . 1 6 5 1 . . . . . . . . . 1 16 17 8 Device 14 | . 5 9 14 14 15 25 12 . 1 3 10 11 12 8 14 12 11 17 20 21 17 11 2 Storage 7 | . 14 14 14 14 9 7 5 6 6 6 3 7 6 5 5 5 5 5 6 9 7 4 7 Processor 6 | . . . . . 2 . . . . . . 1 8 16 21 21 21 21 10 1 . 6 3 Hackware 3 | . . . . . . . . . . . . 3 10 13 10 10 8 5 6 2 . 9 4 Protection 4 | . 8 4 . . 8 8 6 . 3 4 9 10 5 5 . 2 3 . 1 5 4 . . Energy Gun 8 | . 22 14 17 28 24 18 2 . . 16 8 12 . . . . . . . . . . 9 Energy Cannon 2 | . . . . . . 1 . . . . . . . . . . . 3 11 6 . . . Ballistic Gun 2 | . . . . . . . . . . . . . 16 15 14 15 15 4 . . . . . Peak Build Rating 258 | 7 8 8 18 18 47 57 66 53 65 69 99 123 130 139 132 134 134 134 164 191 199 182 258 Average Rating 98 | 5 7 7 11 18 42 52 50 46 52 53 79 89 125 132 130 130 130 115 153 172 169 148 185 On Entrance 82 | . 7 8 8 18 18 47 49 60 47 49 69 82 116 123 132 131 132 134 118 164 184 127 147 Naked Turns 2 | . . . . . . . 2 . . . . . . . . . . . . . . . . Heaviest Build 144 | 15 33 33 89 50 64 112 110 50 87 93 132 136 113 111 101 108 98 95 135 144 122 72 70 Greatest Support 220 | 40 40 40 40 40 84 84 50 50 50 60 65 160 160 160 160 160 160 160 220 200 69 62 62 Greatest Overweight (x) 26 | 4 . . 2 1 5 3 26 . 1 17 2 2 . . . 1 . . . 2 2 1 1 Average Overweight (x) . | . . . . 1 . 1 2 . . . 1 . . . . . . . . . . . . Largest Inventory Capacity 25 | 8 15 15 25 20 25 25 25 20 20 20 25 25 20 20 20 20 20 20 20 20 20 20 22 Average Capacity 19 | 7 12 15 20 20 20 23 23 19 20 20 14 24 20 20 20 20 20 20 20 20 20 20 20 Most Carried 25 | 2 13 14 22 20 20 25 25 20 20 20 25 25 20 20 20 20 20 20 20 20 20 20 22 Average Carried 18 | 1 7 13 16 20 19 22 19 17 19 19 14 24 18 19 19 19 19 17 19 19 19 19 20 Final Capacity 25 | 8 15 15 20 20 20 25 25 20 20 20 25 20 20 20 20 20 20 20 20 20 20 20 22 Final Carried 25 | 2 13 13 20 20 20 23 17 20 20 18 25 15 20 20 20 19 20 17 19 20 19 19 22 Class Distribution -------------------- 17% | Scavenger-Mutant 17% | Mutant 16% | Scavenger-Gunner 11% | Scavenger-Tank 7% | Skirmisher 5% | Hacker-Gunner 5% | Scavenger-Skirmisher 4% | Tank 4% | Alien-Mutant Dominant Class ---------------- Mutant | -10/Materials Mutant | -10/Mines Scavenger-Mutant | -10/Exiles Mutant | -9/Mines Skirmisher | -8/Materials Tank | -7/Factory Mutant | -6/Factory Mutant | -6/Waste Mutant | -6/Factory Commander-Tank | -6/Extension Scavenger-Gunner | -6/Cetus Scavenger-Tank | -6/Archives Scavenger-Skirmisher | -5/Factory Scavenger-Gunner | -4/Factory Scavenger-Gunner | -4/Upper Caves Scavenger-Gunner | -4/Upper Caves Scavenger-Gunner | -4/Zhirov Scavenger-Mutant | -3/Proximity Caves Hacker-Gunner | -3/Research Scavenger-Mutant | -3/Quarantine Alien-Mutant | -2/Research Hacker-Mutant | -2/Testing Alien-Sigix | -2/Section 7 Resources | -11 -10 -10 -10 -9 -8 -7 -6 -6 -6 -6 -6 -6 -5 -4 -4 -4 -4 -3 -3 -3 -2 -2 -2 ----------- Run | Yrd Mat Min Exi Min Mat Fac Fac Was Fac Ext Cet Arc Fac Fac Upp Upp Zhi Pro Res Qua Res Tes Sec Matter Collected 8037 | 207 247 40 350 65 435 474 293 50 205 497 323 517 808 656 202 395 164 318 270 326 219 534 442 Remotely 140 | . . . . . . . . . . . . . . . . . . . 140 . . . . Salvage Created 9476 | 107 524 62 . . 440 573 117 . 32 564 . 794 1111 1046 139 635 330 347 656 929 257 543 270 Parts 524 | 14 29 1 . . 27 35 6 . . 25 . 35 54 66 7 30 2 22 23 67 21 29 31 Haulers Intercepted 4 | . 2 . . . 1 . . . . . . . 1 . . . . . . . . . . Recyclers Shooed 5 | 1 . . . . . . . . . . . . 2 2 . . . . . . . . . Parts Field Recycled 15 | . . . . . . . . . . . . . . . . . . . . . . 15 . Retrieved Matter 94 | . . . . . . . . . . . . . . . . . . . . . . 94 . Parts Self-Destructed 56 | . . . . . . . . . . . . . . . 7 17 1 31 . . . . . Prevented . | . . . . . . . . . . . . . . . . . . . . . . . . Kills | -11 -10 -10 -10 -9 -8 -7 -6 -6 -6 -6 -6 -6 -5 -4 -4 -4 -4 -3 -3 -3 -2 -2 -2 ------- Run | Yrd Mat Min Exi Min Mat Fac Fac Was Fac Ext Cet Arc Fac Fac Upp Upp Zhi Pro Res Qua Res Tes Sec Combat Hostiles Destroyed 137 | . 15 2 . . 5 10 5 . 1 10 . 1 16 13 4 12 . 10 6 17 4 3 3 Melee 8 | . . . . . . 2 . . . 1 . . . . . . . . . . 2 3 . Guns 77 | . 6 . . . 3 3 . . . 7 . 1 16 13 4 12 . 9 . . . . 3 Cannons 18 | . . . . . . . . . . . . . . . . . . 1 3 14 . . . AOE 23 | . 8 2 . . . 4 4 . . . . . . . . . . . . 3 2 . . Classes Destroyed 21 | 2 5 . . . 1 2 1 . . 1 . . 1 1 . 2 . 1 3 1 . . . Worker 19 | 1 . . . . . 1 . . . . . . 1 4 . . . . . 3 1 6 2 Builder 13 | . . . . . . 3 1 . . . . . 1 4 . . . . . 1 . 1 2 Tunneler 7 | 5 . . . . . . . . . 1 . . . . . . . . . . 1 . . Hauler 4 | . 2 . . . 1 . . . . . . . 1 . . . . . . . . . . Recycler 4 | . 1 . . . . . . . . . . . . . . . . . 1 . . 2 . Mechanic 2 | . . . . . . . . . . . . . . 1 . . . . . 1 . . . Operator 13 | . . . . . . . . . . 2 . 9 . 1 . . . . . . 1 . . Drone 1 | . . . . . . . . . . . . . . . . . . 1 . . . . . Watcher 7 | . 2 . . . 3 1 . . . . . . . . . . . . . . 1 . . Swarmer 41 | . 8 . . . . . . . . 6 . . 4 . 3 4 . 8 1 5 . 2 . Grunt 35 | . 7 2 . . 1 6 3 . . 2 . . 4 1 1 3 . . 1 4 . . . Duelist 1 | . . . . . . . . . . . . . . . . . . . . 1 . . . Sentry 12 | . . . . . 4 1 1 . . 2 . 1 3 . . . . . . . . . . Hunter 9 | . . . . . . . 1 . . . . . . 6 . . . . 2 . . . . Programmer 30 | . . . . . . 3 . . 1 . . . 4 6 . . . 1 . 7 4 1 3 Behemoth 1 | . . . . . . . . . . . . . 1 . . . . . . . . . . Enhanced Grunt 4 | . . . . . . . . . . . . 4 . . . . . . . . . . . Striker 1 | . . . . . . . . . . . . . . . . . . . 1 . . . . Executioner 1 | . . . . . . . . . . . . . . . . . . . 1 . . . . Master Thief 1 | . . . . . . . . . . . . . . . . 1 . . . . . . . Thug 2 | . . . . . . . . . . 1 . . . . . 1 . . . . . . . Savage 3 | . . . . . . . . . . . . . . . . 3 . . . . . . . Guerrilla 1 | . . . . . . . . . . 1 . . . . . . . . . . . . . Revision 1 | . . . . . . . . . . . . . . . . . . . 1 . . . . Best Kill Streak 11 | 4 6 2 . . 2 10 5 . 1 2 . 4 5 11 3 4 . 4 3 7 3 2 3 Combat Bots Only 6 | . 5 2 . . 1 6 4 . 1 2 . 1 4 5 3 4 . 4 4 3 2 2 3 Max Kills in Single Turn 4 | 1 3 1 . . 1 3 1 . 1 1 . 1 2 2 1 2 . 2 1 4 2 1 1 Gunslinging 1 | . . . . . . . . . . . . . 1 . . 1 . 1 . . . . . Exploded 3 | . 3 1 . . . 1 1 . . . . . . . . . . . . 2 1 . . Melee 1 | . . . . . . 1 . . . 1 . . . . . . . . . . 1 1 . Uniques/NPCs Destroyed . | . . . . . . . . . . . . . . . . . . . . . . . . Combat | -11 -10 -10 -10 -9 -8 -7 -6 -6 -6 -6 -6 -6 -5 -4 -4 -4 -4 -3 -3 -3 -2 -2 -2 -------- Run | Yrd Mat Min Exi Min Mat Fac Fac Was Fac Ext Cet Arc Fac Fac Upp Upp Zhi Pro Res Qua Res Tes Sec Hostile Shots Fired 1439 | . 73 2 . . 14 147 246 . 52 154 4 2 88 93 14 26 . 91 47 160 78 34 114 Missed 517 | . 25 . . . 5 58 93 . 21 70 3 2 17 37 4 5 . 26 20 31 25 15 60 Damage Taken 16047 | . 552 53 . . 134 1131 1919 . 430 1186 70 70 1587 660 79 144 . 1518 519 2672 1184 391 1748 Core 2288 | . 61 11 . . . 73 547 . 61 131 . . 23 38 21 . . 89 41 257 176 24 735 Absorbed by Shields 1478 | . . . . . . . . . . 116 . . . 542 85 153 . . 187 353 . . 42 Reduced by Siege Mode 385 | . . . . . . . . . . . . . 153 9 . 11 . 55 . 157 . . . Redirected to Core 143 | . . . . . . . . . . . . . . . . . . . . 61 82 . . Redirected to Shielding 225 | . . . . . . 18 47 . 9 . . . . . . . . . . . 151 . . Ignored by Resistances 494 | . . . . . . . . . . . . . . . . . . . . . . . 494 Regen/Repaired (Parts) 1080 | . 13 . . . 30 . . . . . . . . 1031 . . . . . . 6 . . Core Remaining (%) 79 | 100 . . . 71 100 89 . . . . . 13 97 . . . . 87 . 77 . . . Volleys Fired 602 | 13 53 5 . . 22 32 11 . . 47 1 120 41 38 8 31 4 27 30 74 4 3 38 Largest 3 | 2 2 2 . . 3 3 1 . . 3 3 3 3 3 3 3 3 3 2 1 1 1 2 Hottest 300 | 100 100 100 . . 165 179 69 . . 180 180 180 105 105 105 105 105 105 200 113 52 52 300 Shots Fired 1027 | 26 98 6 . . 46 61 11 . . 84 4 141 105 104 20 65 12 67 32 76 3 3 63 Gun 859 | 26 88 1 . . 45 49 . . . 84 4 141 105 104 20 65 12 64 . . . . 51 Cannon 122 | . . . . . . 3 3 . . . . . . . . . . 2 32 73 . . 9 Launcher 40 | . 10 3 . . 1 9 8 . . . . . . . . . . . . 3 3 3 . Special 6 | . . 2 . . . . . . . . . . . . . . . 1 . . . . 3 Kinetic 410 | . . . . . . . . . . . . 40 105 104 20 65 12 64 . . . . . Thermal 297 | 26 88 3 . . . . . . . 22 . 67 . . . . . 2 7 73 . . 9 Explosive 40 | . 10 3 . . 1 9 8 . . . . . . . . . . . . 3 3 3 . Electromagnetic 225 | . . . . . 45 52 3 . . 62 4 34 . . . . . . 25 . . . . Slashing 51 | . . . . . . . . . . . . . . . . . . . . . . . 51 Robot Hit Streak 25 | 6 10 3 . . 12 6 5 . . 5 1 7 25 12 5 24 10 5 5 13 . 1 5 Robot Miss Streak 8 | 5 5 1 . . 2 3 2 . . 3 1 6 2 8 1 3 . 7 3 3 3 2 2 Penetration Max 1 | . . . . . . . . . . . . 1 1 1 . 1 1 1 . . . . . Secondary Targets 13 | . . . . . . . . . . . . . 4 1 . 4 . 3 . . . . 1 Max Gunslinging Chain 1 | . . . . . . . . . . . . . 1 1 . 1 . 1 . . . . 1 Shots Hit Robots 619 | 14 57 3 . . 29 49 8 . 5 50 2 76 74 53 12 41 9 33 24 38 9 15 18 Core Hits 346 | 6 31 4 . . 9 24 19 . . 30 1 35 32 34 6 24 5 17 13 28 10 11 7 Critical Kills 30 | . . . . . . . . . . 1 . 1 7 12 1 4 1 2 . . . . 1 Critical Parts Destroyed 38 | . . . . . . 1 . . 1 2 . 2 6 10 2 6 2 4 . . . . 2 Critical Strikes 93 | 2 4 . . . 1 2 . . 1 6 . 10 15 22 3 12 3 8 . . 1 . 3 Burn 10 | 2 4 . . . . . . . . . . 4 . . . . . . . . . . . Destroy 72 | . . . . . . . . . . . . 6 15 22 3 12 3 8 . . . . 3 Corrupt 5 | . . . . . 1 1 . . . 3 . . . . . . . . . . . . . Smash 5 | . . . . . . 1 . . 1 3 . . . . . . . . . . . . . Sever 1 | . . . . . . . . . . . . . . . . . . . . . 1 . . Melee Attacks 115 | . 1 . . . . 17 3 . 12 9 . . . . . . . . . 3 32 26 12 Impact 42 | . 1 . . . . 17 3 . 12 9 . . . . . . . . . . . . . Slashing 73 | . . . . . . . . . . . . . . . . . . . . 3 32 26 12 Piercing . | . . . . . . . . . . . . . . . . . . . . . . . . Sneak Attacks 10 | . . . . . . . . . . . . . . . . . . . . . 1 9 . Combat Hostiles 1 | . . . . . . . . . . . . . . . . . . . . . . 1 . Follow-up Attacks 1 | . . . . . . . . . . . . . . . . . . . . . 1 . . Damage Inflicted 23326 | 174 1095 124 . . 623 1739 874 . 230 1359 8 2247 2659 1801 264 1292 351 907 903 2577 919 1616 1564 Guns 13471 | 174 677 12 . . 623 586 . . . 1177 8 2120 2636 1790 264 1292 351 847 . . . . 914 Cannons 3520 | . . . . . . 68 72 . . . . . . . . . . 60 702 1968 . . 650 Explosions 3451 | . 393 112 . . . 594 802 . . . . 127 . . . . . . 157 609 297 360 . Melee 2779 | . . . . . . 491 . . 230 180 . . . . . . . . . . 622 1256 . Ramming 105 | . 25 . . . . . . . . 2 . . 23 11 . . . . 44 . . . . Kinetic 7869 | . . . . . . . . . . . . 689 2636 1790 264 1292 351 847 . . . . . Thermal 5420 | 174 677 12 . . . 115 193 . . 389 . 998 . . . . . 60 184 1968 . . 650 Explosive 2859 | . 393 112 . . . 479 609 . . . . . . . . . . . . 609 297 360 . Electromagnetic 3380 | . . . . . 623 654 72 . . 788 8 560 . . . . . . 675 . . . . Impact 901 | . . . . . . 491 . . 230 180 . . . . . . . . . . . . . Slashing 2792 | . . . . . . . . . . . . . . . . . . . . . 622 1256 914 Piercing . | . . . . . . . . . . . . . . . . . . . . . . . . Highest Corruption 50 | . . . . . 2 5 . 5 7 30 30 50 3 5 5 . . . . 15 5 5 5 Average Corruption 12 | . . . . . 2 3 . 5 5 25 30 34 1 4 3 . . . . 5 4 5 5 Corruption Purged 26 | . . . . . . 4 . . . . . 15 2 . 5 . . . . . . . . Corruption Blocked . | . . . . . . . . . . . . . . . . . . . . . . . . Effects 334 | . . . . . 22 32 . . 14 67 43 71 4 11 3 . . . . 25 6 11 25 Message Errors 75 | . . . . . 6 3 . . 3 14 8 17 1 2 1 . . . . 9 1 3 7 Matter Fused 79 | . . . . . 3 9 . . 3 18 10 16 . 4 . . . . . 5 3 3 5 Heat Flow Errors 39 | . . . . . . 3 . . 3 11 6 9 1 . . . . . . 3 1 . 2 Energy Discharges 35 | . . . . . 4 6 . . 1 5 3 6 . 2 1 . . . . 3 . 2 2 Parts Rejected 1 | . . . . . . . . . . 1 . . . . . . . . . . . . . Parts Fused 9 | . . . . . 1 1 . . . 2 2 1 . . . . . . . 1 . . 1 Data Loss (minor) 37 | . . . . . 2 5 . . 4 4 6 6 1 1 1 . . . . 1 . 2 4 Data Loss (major) 12 | . . . . . 3 1 . . . 3 2 1 . . . . . . . 1 . 1 . Misfires 18 | . . . . . 2 3 . . . 3 3 3 1 . . . . . . 2 . . 1 Alerts 7 | . . . . . 1 . . . . . 1 2 . . . . . . . . . . 3 Misdirections 2 | . . . . . . . . . . 2 . . . . . . . . . . . . . Weapon Failures 20 | . . . . . . 1 . . . 4 2 10 . 2 . . . . . . 1 . . Overload Shots 1 | . . . . . . . . . . . . . . . . . . . 1 . . . . Overflow Damage 1389 | . 18 . . . . 195 . . 86 82 . . . . . . . . 14 174 131 484 205 Projectiles 354 | . . . . . . 20 . . . . . . . . . . . . . 129 . . 205 Explosions 97 | . 18 . . . . 34 . . . . . . . . . . . . . 45 . . . Melee 938 | . . . . . . 141 . . 86 82 . . . . . . . . 14 . 131 484 . Knockbacks 5 | . . . . . . 1 . . 1 2 . . . . . . . . 1 . . . . Impact 5 | . . . . . . 1 . . 1 2 . . . . . . . . 1 . . . . Kinetic . | . . . . . . . . . . . . . . . . . . . . . . . . Secondary . | . . . . . . . . . . . . . . . . . . . . . . . . Self-Inflicted Damage 262 | . 69 23 . . . . . . . . . 30 41 . . . . . . 99 . . . Shots 8 | . 3 1 . . . . . . . . . 1 1 . . . . . . 2 . . . Rammed 11 | . 5 . . . . . . . . . . . 2 2 . . . . 1 . . 1 . Targets Rammed 14 | . 6 . . . . . . . . 1 . . 2 3 . . . . 1 . . 1 . Kicked 1 | . . . . . . . . . . 1 . . . . . . . . . . . . . Crushed 2 | . 1 . . . . . . . . . . . . 1 . . . . . . . . . Highest Temperature 492 | 156 369 50 . . . 90 15 . 181 492 202 259 356 206 77 167 . 348 . 49 24 438 219 Average Temperature 92 | 57 112 26 . . . 47 8 . 83 116 84 68 110 62 34 71 . 209 . 49 24 231 89 Received Heat Transfer 2782 | . 186 36 . . 72 312 567 . 33 256 9 . 330 24 5 30 . 456 . 304 90 . 72 Effects 7 | . 1 . . . . . . . . 4 . 1 . . . . . 1 . . . . . Shutdowns 3 | . 1 . . . . . . . . 1 . . . . . . . 1 . . . . . Energy Bleed 1 | . . . . . . . . . . . . 1 . . . . . . . . . . . Interference 2 | . . . . . . . . . . 2 . . . . . . . . . . . . . Damage (minor) 1 | . . . . . . . . . . 1 . . . . . . . . . . . . . Siege Activations 15 | . . . . . . . . . . . . . 5 2 . 2 . 2 . 4 . . . Total Turns 336 | . . . . . . . . . . . . . 86 30 . 31 . 44 . 145 . . . Longest Duration 64 | . . . . . . . . . . . . . 27 19 . 18 . 28 . 64 . . . Robots Corrupted 13 | . . . . . 2 1 1 . 1 3 . 1 . . . . . . 4 . . . . Combat Hostiles 10 | . . . . . 2 1 1 . 1 2 . . . . . . . . 3 . . . . Parts Fried 42 | . . . . . 10 2 . . 2 8 . 9 . . . . . . 11 . . . . Impact Corruptions 13 | . . . . . . 5 . . 4 3 . . . . . . . . 1 . . . . Robots Melted 2 | . 1 . . . . . . . . . . 1 . . . . . . . . . . . Combat Hostiles 1 | . 1 . . . . . . . . . . . . . . . . . . . . . . Parts Melted 14 | 2 4 . . . . 1 . . . 1 . 3 2 . . . . . 1 . . . . Heat Transferred 7440 | 666 2294 37 . . . 50 100 . . 875 . 1802 . . . . . 37 99 1480 . . . Parts Sabotaged . | . . . . . . . . . . . . . . . . . . . . . . . . Parts Stolen 3 | . . . . . . . . . . . . . . . . 3 . . . . . . . Parts Stripped . | . . . . . . . . . . . . . . . . . . . . . . . . Power Chain Reactions 5 | . . . . . . 2 . . . . . 2 . . . . . . 1 . . . . Alert | -11 -10 -10 -10 -9 -8 -7 -6 -6 -6 -6 -6 -6 -5 -4 -4 -4 -4 -3 -3 -3 -2 -2 -2 ------- Run | Yrd Mat Min Exi Min Mat Fac Fac Was Fac Ext Cet Arc Fac Fac Upp Upp Zhi Pro Res Qua Res Tes Sec Peak Influence 2094 | 30 252 132 . . 218 193 539 200 274 375 247 306 513 541 . . . . 622 471 413 455 2094 Initial 620 | . 19 56 . . . 72 31 185 140 46 168 38 2 210 . . . . 620 75 197 202 198 Average 193 | 11 115 83 . . 62 66 275 193 192 228 62 102 166 346 . . . . 274 245 222 307 552 Maximum Alert Level 5 | . 1 . . . 1 . 2 1 1 1 1 1 2 2 . . . . 2 2 2 2 5 Low Security (%) 57 | 100 79 100 . 100 95 100 43 46 53 21 96 74 56 . . . . . 35 46 38 . 32 Level 1 33 | . 20 . . . 4 . 19 53 46 78 3 25 28 81 . . . . 42 39 59 78 43 Level 2 8 | . . . . . . . 37 . . . . . 15 18 . . . . 21 14 2 21 1 Level 3 . | . . . . . . . . . . . . . . . . . . . . . . . . Level 4 . | . . . . . . . . . . . . . . . . . . . . . . . . Level 5 . | . . . . . . . . . . . . . . . . . . . . . . . . High Security . | . . . . . . . . . . . . . . . . . . . . . . . . Max Security 1 | . . . . . . . . . . . . . . . . . . . . . . . 22 Squads Dispatched 57 | . 1 . . . . 4 4 . 2 4 . . 4 5 . . . . 5 4 4 5 15 Investigation 4 | . . . . . . . 1 . . . . . . 1 . . . . 1 . 1 . . Extermination 13 | . . . . . . 2 . . 1 . . . 2 1 . . . . . 4 1 1 1 Reinforcement 23 | . 1 . . . . 2 1 . 1 4 . . 2 3 . . . . 4 . 2 1 2 Assault 13 | . . . . . . . 1 . . . . . . . . . . . . . . . 12 Garrison 4 | . . . . . . . 1 . . . . . . . . . . . . . . 3 . Intercept . | . . . . . . . . . . . . . . . . . . . . . . . . Searches Triggered . | . . . . . . . . . . . . . . . . . . . . . . . . Construction Impeded 7 | . . . . . . 1 1 . . 2 . . . 2 . . . . . . . 1 . Haulers Reinforced 3 | . . . . . . . . . . . . . 1 . . . . . 1 . . . 1 Active Scanning Responses . | . . . . . . . . . . . . . . . . . . . . . . . . Cargo Convoy Interrupts 1 | . . . . . . 1 . . . . . . . . . . . . . . . . . Stealth | -11 -10 -10 -10 -9 -8 -7 -6 -6 -6 -6 -6 -6 -5 -4 -4 -4 -4 -3 -3 -3 -2 -2 -2 --------- Run | Yrd Mat Min Exi Min Mat Fac Fac Was Fac Ext Cet Arc Fac Fac Upp Upp Zhi Pro Res Qua Res Tes Sec Distress Signals 28 | . 1 . . . 1 1 . . . 5 2 . 1 1 . . . 1 8 . 1 1 5 Communications Jammed 11 | . . . . . . . . . . . . . . . . . . . . 11 . . . Distress Signals 11 | . . . . . . . . . . . . . . . . . . . . 11 . . . Times Spotted 427 | . 21 2 . . 14 29 16 2 6 35 11 21 24 16 4 21 . 18 18 24 31 12 102 Peak Tracking Total 43 | . 8 2 . . 4 10 7 2 4 8 5 1 4 5 4 5 . 5 4 6 11 4 43 Tactical Retreats 32 | . 1 . . . . 2 . . 2 6 . . 1 . 1 3 . 1 1 1 3 1 9 Traps | -11 -10 -10 -10 -9 -8 -7 -6 -6 -6 -6 -6 -6 -5 -4 -4 -4 -4 -3 -3 -3 -2 -2 -2 ------- Run | Yrd Mat Min Exi Min Mat Fac Fac Was Fac Ext Cet Arc Fac Fac Upp Upp Zhi Pro Res Qua Res Tes Sec Traps Triggered 13 | . . . . . 1 2 1 . . 3 . . 2 1 . . . . 1 1 1 . . Indirectly . | . . . . . . . . . . . . . . . . . . . . . . . . Trap Hack Attempts . | . . . . . . . . . . . . . . . . . . . . . . . . Triggered . | . . . . . . . . . . . . . . . . . . . . . . . . Disarmed . | . . . . . . . . . . . . . . . . . . . . . . . . Reprogrammed . | . . . . . . . . . . . . . . . . . . . . . . . . Reused . | . . . . . . . . . . . . . . . . . . . . . . . . Traps Extracted . | . . . . . . . . . . . . . . . . . . . . . . . . Installed . | . . . . . . . . . . . . . . . . . . . . . . . . Triggered . | . . . . . . . . . . . . . . . . . . . . . . . . Machines | -11 -10 -10 -10 -9 -8 -7 -6 -6 -6 -6 -6 -6 -5 -4 -4 -4 -4 -3 -3 -3 -2 -2 -2 ---------- Run | Yrd Mat Min Exi Min Mat Fac Fac Was Fac Ext Cet Arc Fac Fac Upp Upp Zhi Pro Res Qua Res Tes Sec Machines Disabled 50 | . . . . . 1 1 3 . . 1 . 1 2 2 . . 1 . 3 11 1 2 21 Max in Single Turn 2 | . . . . . 1 1 1 . . . . 1 2 1 . . 1 . 1 1 1 1 2 Garrison Access 3 | . . . . . . . 1 . . . . . . . . . . . 1 . . . 1 Machines Repaired . | . . . . . . . . . . . . . . . . . . . . . . . . Machines Dismantled 4 | . . . . . . . . . . . . . . . . . . . 3 1 . . . Machines Sabotaged . | . . . . . . . . . . . . . . . . . . . . . . . . Overloaded Fab Kills . | . . . . . . . . . . . . . . . . . . . . . . . . Hacking | -11 -10 -10 -10 -9 -8 -7 -6 -6 -6 -6 -6 -6 -5 -4 -4 -4 -4 -3 -3 -3 -2 -2 -2 --------- Run | Yrd Mat Min Exi Min Mat Fac Fac Was Fac Ext Cet Arc Fac Fac Upp Upp Zhi Pro Res Qua Res Tes Sec Machines Accessed 75 | . 8 1 1 . 7 4 3 . 4 5 . . 6 3 . . 4 . 5 5 7 2 10 Terminals 53 | . 7 1 . . 5 3 2 . 4 5 . . 4 1 . . . . 3 3 5 1 9 Fabricators 2 | . . . . . . . . . . . . . 2 . . . . . . . . . . Repair Stations 4 | . 1 . . . 1 . . . . . . . . 2 . . . . . . . . . Recycling Units . | . . . . . . . . . . . . . . . . . . . . . . . . Scanalyzers 6 | . . . . . 1 1 . . . . . . . . . . . . 1 1 1 1 . Garrison Access 5 | . . . . . . . 1 . . . . . . . . . . . 1 1 1 . 1 Total Hacks 179 | . 29 3 1 . 17 12 5 . 10 9 . . 10 12 . . 17 . 11 8 11 3 21 Successful 101 | . 11 2 1 . 9 9 4 . 7 3 . . 4 7 . . 17 . 4 2 5 1 15 Failed 78 | . 18 1 . . 8 3 1 . 3 6 . . 6 5 . . . . 7 6 6 2 6 Catastrophic 10 | . 2 . . . 1 . 1 . . . . . 1 . . . . . . 2 3 . . Database Lockouts . | . . . . . . . . . . . . . . . . . . . . . . . . Manual 93 | . 24 3 1 . 13 6 2 . 8 6 1 . 3 3 . . . . 5 3 4 1 10 Terminals 123 | . 26 3 . . 13 7 3 . 10 9 . . 8 3 . . . . 6 5 8 2 20 Fabricators 2 | . . . . . . . . . . . . . 2 . . . . . . . . . . Repair Stations 14 | . 3 . . . 2 . . . . . . . . 9 . . . . . . . . . Recycling Units . | . . . . . . . . . . . . . . . . . . . . . . . . Scanalyzers 15 | . . . . . 2 5 . . . . . . . . . . . . 3 2 2 1 . Garrison Access 7 | . . . . . . . 2 . . . . . . . . . . . 2 1 1 . 1 Terminal Hacks 49 | . 2 1 1 . 1 1 2 . 5 3 . . 3 1 . . 17 . 1 . 2 . 9 Record 6 | . . . . . . . . . . . . . . . . . 5 . 1 . . . . Part Schematic 4 | . . . . . . . . . . . . . . . . . 4 . . . . . . Robot Schematic 2 | . 1 1 . . . . . . . . . . . . . . . . . . . . . Robot Analysis 4 | . . . . . . . . . . . . . . . . . 4 . . . . . . Prototype ID Bank 4 | . . . . . . . . . . . . . . . . . 4 . . . . . . Open Door 7 | . . . . . . . . . 1 2 . . . . . . . . . . . . 4 Branch Access Points 4 | . . . . . 1 1 . . 1 . . . . . . . . . . . 1 . . Terminal Index 2 | . . . . . . . . . 1 . . . . 1 . . . . . . . . . Alert Level 3 | . . . . . . . . . 1 . . . 1 . . . . . . . . . 1 Unreport Threat 3 | . . . . . . . . . . 1 . . . . . . . . . . . . 2 Locate Traps 4 | . 1 . . . . . 1 . . . . . 1 . . . . . . . . . 1 Recall Reinforcements 1 | . . . . . . . . . . . . . 1 . . . . . . . . . . Zone Layout 3 | . . . . . . . 1 . 1 . . . . . . . . . . . 1 . . Derelict Proto ID Bank 1 | . . . 1 . . . . . . . . . . . . . . . . . . . . Activate Exoskeleton 1 | . . . . . . . . . . . . . . . . . . . . . . . 1 Fabricator Hacks 1 | . . . . . . . . . . . . . 1 . . . . . . . . . . Build 1 | . . . . . . . . . . . . . 1 . . . . . . . . . . Repair Station Hacks 9 | . 2 . . . 2 . . . . . . . . 5 . . . . . . . . . Scan Component 5 | . 1 . . . 1 . . . . . . . . 3 . . . . . . . . . Repair 4 | . 1 . . . 1 . . . . . . . . 2 . . . . . . . . . Recycling Unit Hacks . | . . . . . . . . . . . . . . . . . . . . . . . . Scanalyzer 11 | . . . . . 1 4 . . . . . . . . . . . . 1 2 2 1 . Insert Component 7 | . . . . . 1 2 . . . . . . . . . . . . 1 1 1 1 . Analyze 4 | . . . . . . 2 . . . . . . . . . . . . . 1 1 . . Garrison Access Hacks 3 | . . . . . . . 1 . . . . . . . . . . . 1 . . . 1 Unlock Access 1 | . . . . . . . 1 . . . . . . . . . . . . . . . . Seal Access 2 | . . . . . . . . . . . . . . . . . . . 1 . . . 1 Unauthorized Hacks 28 | . 7 1 . . 5 4 1 . 2 . . . . 1 . . . . 1 . 1 . 5 Terminals 28 | . 7 1 . . 5 4 1 . 2 . . . . 1 . . . . 1 . 1 . 5 Track 1 | . . 1 . . . . . . . . . . . . . . . . . . . . . Assimilate 1 | . . . . . . . . . . . . . . . . . . . . . . . 1 Botnet 13 | . 1 . . . . 2 1 . 2 . . . . 1 . . . . 1 . 1 . 4 Operators 1 | . 1 . . . . . . . . . . . . . . . . . . . . . . Skim 12 | . 5 . . . 5 2 . . . . . . . . . . . . . . . . . Fabricators . | . . . . . . . . . . . . . . . . . . . . . . . . Repair Stations . | . . . . . . . . . . . . . . . . . . . . . . . . Recycling Units . | . . . . . . . . . . . . . . . . . . . . . . . . Scanalyzers . | . . . . . . . . . . . . . . . . . . . . . . . . Garrison Access . | . . . . . . . . . . . . . . . . . . . . . . . . Data Cores Recovered 2 | . . . . . . . . . . 1 . . . 1 . . . . . . . . . Used 1 | . . . . . . . . . . . . . . 1 . . . . . . . . . Hacking Detections 49 | . 8 1 . . 7 4 2 . 2 4 . . 4 3 . . . . 4 4 4 1 1 Full Trace Events 1 | . . . . . . . 1 . . . . . . . . . . . . . . . . Feedback Events . | . . . . . . . . . . . . . . . . . . . . . . . . Feedback Blocked . | . . . . . . . . . . . . . . . . . . . . . . . . Robot Schematics Acquired 2 | . 1 1 . . . . . . . . . . . . . . . . . . . . . Robots Built 2 | . . . . . . . . . . . . . 2 . . . . . . . . . . Authchips . | . . . . . . . . . . . . . . . . . . . . . . . . Time 169 | . . . . . . . . . . . . . 169 . . . . . . . . . . Total Robot Build Rating 12 | . . . . . . . . . . . . . 12 . . . . . . . . . . Part Schematics Acquired 8 | . . . . . . 2 . . . . . . . . . . 4 . . 1 1 . . Parts Built . | . . . . . . . . . . . . . . . . . . . . . . . . Authchips . | . . . . . . . . . . . . . . . . . . . . . . . . Time . | . . . . . . . . . . . . . . . . . . . . . . . . Total Part Build Rating . | . . . . . . . . . . . . . . . . . . . . . . . . Parts Repaired 4 | . 1 . . . 1 . . . . . . . . 2 . . . . . . . . . Time 260 | . 26 . . . 44 . . . . . . . . 190 . . . . . . . . . Parts Recycled . | . . . . . . . . . . . . . . . . . . . . . . . . Recycled Matter . | . . . . . . . . . . . . . . . . . . . . . . . . Retrieved Matter . | . . . . . . . . . . . . . . . . . . . . . . . . Retrieved Components . | . . . . . . . . . . . . . . . . . . . . . . . . Parts Scanalyzed 5 | . . . . . 1 1 . . . . . . . . . . . . 1 1 1 . . Part Schematics Acquired 4 | . . . . . . 2 . . . . . . . . . . . . . 1 1 . . Parts Damaged 2 | . . . . . . . . . . . . . . . . . . . 1 1 . . . Bothacking | -11 -10 -10 -10 -9 -8 -7 -6 -6 -6 -6 -6 -6 -5 -4 -4 -4 -4 -3 -3 -3 -2 -2 -2 ------------ Run | Yrd Mat Min Exi Min Mat Fac Fac Was Fac Ext Cet Arc Fac Fac Upp Upp Zhi Pro Res Qua Res Tes Sec Used RIF Installer . | . . . . . . . . . . . . . . . . . . . . . . . . Robots Hacked . | . . . . . . . . . . . . . . . . . . . . . . . . Non-combat . | . . . . . . . . . . . . . . . . . . . . . . . . Combat . | . . . . . . . . . . . . . . . . . . . . . . . . Robot Hacks Applied . | . . . . . . . . . . . . . . . . . . . . . . . . Relay Couplers Released 5 | . . . . . . . 1 . . . . . . . . . . . . . . . 4 Machine Destruction 5 | . . . . . . . 1 . . . . . . . . . . . . . . . 4 Fabnet Peak Effective % . | . . . . . . . . . . . . . . . . . . . . . . . . Robots Rewired 9 | . . . . . . 2 . . . 7 . . . . . . . . . . . . . Allies Hacked 1 | . . . . . . . . . . . . . 1 . . . . . . . . . . Hacks Repelled . | . . . . . . . . . . . . . . . . . . . . . . . . Allies | -11 -10 -10 -10 -9 -8 -7 -6 -6 -6 -6 -6 -6 -5 -4 -4 -4 -4 -3 -3 -3 -2 -2 -2 -------- Run | Yrd Mat Min Exi Min Mat Fac Fac Was Fac Ext Cet Arc Fac Fac Upp Upp Zhi Pro Res Qua Res Tes Sec Total Allies 27 | . . . . 3 . 2 . . . 10 5 . 2 . . . . 1 . . . . 4 Largest Group 10 | . . . . 3 3 1 . . . 10 7 6 2 . . . . 1 . . . . 1 Highest-Rated Group 673 | . . . . 40 40 32 . . . 420 673 639 98 . . . . 116 . . . . 178 Highest-Rated Ally 178 | . . . . 16 16 32 . . . 159 159 159 49 . . . . 116 . . . . 178 Total Orders 15 | . . . . . 2 . 4 . 1 . 7 1 . . . . . . . . . . . STAY 2 | . . . . . 1 . . . . . . 1 . . . . . . . . . . . FOLLOW 2 | . . . . . 1 . 1 . . . . . . . . . . . . . . . . EXPLORE 7 | . . . . . . . . . 1 . 6 . . . . . . . . . . . . RETURN 4 | . . . . . . . 3 . . . 1 . . . . . . . . . . . . Ally Attacks 403 | . . . . . 14 8 42 . . 108 157 31 7 . . . . 16 . . . . 20 Total Damage 10642 | . . . . . 155 290 1159 . . 2935 3385 1090 352 . . . . 293 . . . . 983 Kills 64 | . . . . . 3 2 10 . . 20 15 3 1 . . . . 4 . . . . 6 Allies Corrupted 2 | . . . . . . . . . . . . . 2 . . . . . . . . . . Allies Melted 1 | . . . . . . 1 . . . . . . . . . . . . . . . . . Field Lobotomies 4 | . . . . . . . . . . . . . . . . . . 1 . . . . 3 Intel | -11 -10 -10 -10 -9 -8 -7 -6 -6 -6 -6 -6 -6 -5 -4 -4 -4 -4 -3 -3 -3 -2 -2 -2 ------- Run | Yrd Mat Min Exi Min Mat Fac Fac Was Fac Ext Cet Arc Fac Fac Upp Upp Zhi Pro Res Qua Res Tes Sec Robot Analysis Total 4 | . . . . . . . . . . . . . . . . . 4 . . . . . . Derelict Logs Recovered 3 | . . . . 1 . . . . . . . . . . 1 1 . . . . . . . Drone Launches 43 | . . . . . . . 13 . 2 . 28 . . . . . . . . . . . . Drone Recoveries 21 | . . . . . . . 11 . 1 . 9 . . . . . . . . . . . . Exploration | -11 -10 -10 -10 -9 -8 -7 -6 -6 -6 -6 -6 -6 -5 -4 -4 -4 -4 -3 -3 -3 -2 -2 -2 ------------- Run | Yrd Mat Min Exi Min Mat Fac Fac Was Fac Ext Cet Arc Fac Fac Upp Upp Zhi Pro Res Qua Res Tes Sec Turns Passed 24311 | 168 1302 486 1151 339 1923 1546 396 54 456 1383 814 1378 1676 683 375 890 371 1627 3673 1255 838 562 965 Spaces Moved 13547 | 72 650 293 498 140 870 861 178 72 298 642 225 433 877 292 213 476 213 941 1348 481 803 953 1718 Core 30 | 20 . . . . . . 6 . . 4 . . . . . . . . . . . . . Treads 7747 | 52 650 293 498 140 798 278 2 . . . . 204 877 292 213 476 213 941 1348 472 . . . Legs 1924 | . . . . . . . . . . 487 225 229 . . . . . . . . . . 983 Wheels 768 | . . . . . 72 583 113 . . . . . . . . . . . . . . . . Hover 5 | . . . . . . . 5 . . . . . . . . . . . . . . . . Flight 3041 | . . . . . . . 52 72 298 151 . . . . . . . . . 9 803 953 703 Fastest Speed 25 | 50 160 160 160 240 155 130 50 50 50 50 120 160 160 160 160 160 160 160 160 166 31 25 25 Average Speed 137 | 157 160 160 226 240 167 149 172 50 88 174 199 202 160 160 160 161 160 160 163 187 83 42 38 Slowest Speed 1350 | 250 160 160 320 240 240 160 1350 50 150 900 260 260 160 160 160 240 160 160 166 330 194 115 108 Overloaded Moves 56 | . . . . . . . . . . . . . . . . . . . . . . 14 42 Propulsion Burnouts . | . . . . . . . . . . . . . . . . . . . . . . . . Robots Hopped 21 | . . . . . . . . . . . . . . . . . . . . . 5 12 4 Cave-ins Triggered 3 | . . . . . . . . . . . . . . . . . . . . . . . 3 Teleports 6 | . . . . . . . . . . . . . . . . . . . . . 2 1 3 Spacefolds 13 | . . . . . . . . . . . . . . . . . . . . . . . 13 Exploration Rate (%) 51 | 6 97 57 70 47 61 20 7 61 17 66 76 96 29 10 40 53 60 95 46 59 26 64 75 Regions Visited 23 Branch Regions 13 Pre-discovered Areas 4 | . . . . . 1 . . . . . . . . . . . 3 . . . . . . Known Exits Taken 14 | . . . . 1 1 1 . . 1 . . 1 1 1 1 1 1 1 1 1 1 . . Unknown Exits Taken 7 | 1 1 1 1 . . . . . . 1 1 . . . . . . . . . . 1 . Scrap Searched 3 | . . . . 1 . . . . . . . . . . 1 1 . . . . . . . Spaces Dug 92 | . 7 . . . 7 5 1 . 3 . . . 9 1 . 2 . . 2 11 19 7 18 Terrain Destroyed 630 | . 55 26 . . 7 46 50 . 3 . . 14 69 39 8 26 . 28 19 67 61 61 51 Melee 40 | . 1 . . . . 5 1 . 3 . . . . . . . . . . 2 19 7 2 Projectile 256 | . . 1 . . . . . . . . . 14 69 38 8 26 . 28 3 20 . . 49 AOE 333 | . 54 25 . . 7 41 49 . . . . . . . . . . . 16 45 42 54 . Terrain Rammed . | . . . . . . . . . . . . . . . . . . . . . . . . Walls Destroyed . | . . . . . . . . . . . . . . . . . . . . . . . . Machines Disabled . | . . . . . . . . . . . . . . . . . . . . . . . . Actions | -11 -10 -10 -10 -9 -8 -7 -6 -6 -6 -6 -6 -6 -5 -4 -4 -4 -4 -3 -3 -3 -2 -2 -2 --------- Run | Yrd Mat Min Exi Min Mat Fac Fac Was Fac Ext Cet Arc Fac Fac Upp Upp Zhi Pro Res Qua Res Tes Sec Total 18147 | 97 803 300 532 145 1293 1032 253 91 474 801 590 835 1055 422 228 546 240 1008 2756 747 912 1047 1940 Wait 2895 | 4 76 . 2 4 371 39 25 6 137 16 300 218 81 68 . 17 . 32 1266 121 12 7 93 Move 13462 | 71 649 292 497 139 869 860 178 71 297 641 224 432 876 291 212 475 212 940 1347 480 792 929 1688 Hop 19 | . . . . . . . . . . . . . . . . . . . . . 5 11 3 Pick Up 213 | 2 7 1 13 1 3 7 7 7 3 3 18 7 12 5 1 7 10 1 25 20 5 9 39 Fast Attach 108 | 7 1 . . . 6 7 11 1 2 14 9 6 . 2 . . 1 1 2 4 10 15 9 Attach 113 | . . 1 . . . 5 6 . 8 6 4 16 3 3 . 4 1 5 3 7 6 13 22 Detach 80 | . . . . . 1 2 7 4 9 . 7 16 . . . . . 1 . . 8 13 12 Swap 207 | . 10 1 6 . 14 23 . . . 1 11 7 33 9 6 6 4 1 26 16 23 5 5 Drop 189 | . . . 14 1 7 10 5 2 6 . 16 13 7 3 1 6 8 . 27 15 17 15 16 Fire 602 | 13 53 5 . . 22 32 11 . . 47 1 120 41 38 8 31 4 27 30 74 4 3 38 Melee 113 | . 1 . . . . 17 3 . 12 9 . . . . . . . . . 3 30 26 12 Ram 1 | . . . . . . . . . . . . . . . . . . . . . . 1 . Kick 1 | . . . . . . . . . . 1 . . . . . . . . . . . . . Crush 12 | . 6 . . . . . . . . . . . 2 3 . . . . 1 . . . . Escape Stasis 18 | . . . . . . . . . . 15 . . . . . . . . . . . . 3 Rewire 78 | . . . . . . 30 . . . 48 . . . . . . . . . . . . . Trap . | . . . . . . . . . . . . . . . . . . . . . . . . Miscellaneous 36 | . . . . . . . . . . . . . . . . . . . 29 7 . . . Route ------- -11/Scrapyard -10/Materials (discovered 4 exits: *Mat x3 / *Min) -10/Mines (discovered 3 exits: *Mat x2 / *Exi) -10/Exiles -9/Mines (discovered 2 exits: *Mat x2) -8/Materials (discovered 3 exits: *Fac x3) -7/Factory (discovered 5 exits: *Fac x3 / Low x2) -6/Factory -6/Waste -6/Factory (discovered 4 exits: Low x2 / *Ext x2) -6/Extension (discovered 2 exits: *Fac / *Cet) -6/Cetus (discovered 3 exits: *Fac x2 / *Arc) -6/Archives (discovered 3 exits: *Fac / *Hub x2) -5/Factory (discovered 2 exits: *Fac / *Upp) -4/Factory -4/Upper Caves -4/Upper Caves -4/Zhirov -3/Proximity Caves -3/Research (discovered 5 exits: *Res x3 / *Arm / *Qua) -3/Quarantine -2/Research (discovered 2 exits: *Tes x2) -2/Testing (discovered 2 exits: [*Acc] / *Sec) -2/Section 7 (discovered 1 exit: [*Acc]) History --------- Turn | Location | Event 30 | -11/Scrapyard | Discovered new exit (range 16) 169 | -11/Scrapyard | Entered Materials 303 | -10/Materials | Build established: Mutant 364 | -10/Materials | Discovered new exit (range 9) 542 | -10/Materials | Discovered new exit (range 10) 613 | -10/Materials | Repaired Seismic Detector 813 | -10/Materials | Discovered new exit (range 2) 1124 | -10/Materials | Loaded intel: 2 recycling unit locations 1210 | -10/Materials | Learned 4 Subcaves zone layouts 1237 | -10/Materials | Learned Storage emergency access door positions 1252 | -10/Materials | Learned 4 Recycling zone layouts 1314 | -10/Materials | Learned location of 1 exit from Recycling 1373 | -10/Materials | Discovered new exit (range 7) 1471 | -10/Materials | Entered Mines 1472 | -10/Mines | Identified exit to Materials 1495 | -10/Mines | Received a Rocket Launcher from a helpful Derelict 1757 | -10/Mines | Deemed a non-threat by the Exiles lab entrance 1759 | -10/Mines | Discovered new exit (range 5) 1957 | -10/Mines | Entered Exiles 1996 | -10/Exiles | Met 8R-AWN 2084 | -10/Exiles | Met EX-HEX 2127 | -10/Exiles | Met EX-BIN 2149 | -10/Exiles | Aligned with FarCom system 2151 | -10/Exiles | Given EX-Vault access code 2189 | -10/Exiles | Opened EX-Vault 2226 | -10/Exiles | Warned to stay clear of 0b10 Research branches 2248 | -10/Exiles | Build established: Scavenger-Mutant 2274 | -10/Exiles | Met EX-DEC 2804 | -10/Exiles | Found Army-in-a-Box 2821 | -10/Exiles | Found Field Lobotomy Kit 2852 | -10/Exiles | Found Flying Fortress v7 3084 | -10/Exiles | Discovered new exit (range 11) 3108 | -10/Exiles | Stole three prototypes: Flying Fortress v7, Army-in-a-Box, Field Lobotomy Kit 3108 | -10/Exiles | Entered Mines 3109 | -9/Mines | Identified exit to Materials 3116 | -9/Mines | Assisted by bots powering up and referring to "LRC-V3" 3121 | -9/Mines | Build established: Mutant 3447 | -9/Mines | Entered Materials 3447 | -8/Materials | Accompanied by 3 allies 3447 | -8/Materials | Evolved 4 slots: Propulsion x1, Utility x2, Weapon x1 3448 | -8/Materials | Identified exit to Factory 3772 | -8/Materials | Build established: Skirmisher 4604 | -8/Materials | Discovered exit to Factory (range 9) 4687 | -8/Materials | Repaired Med. Treads 5039 | -8/Materials | Learned location of 1 exit from Storage 5091 | -8/Materials | Learned location of 2 exits from Factory 5135 | -8/Materials | Learned location of 1 exit from Lower Caves 5195 | -8/Materials | Learned location of 1 exit from Storage 5212 | -8/Materials | Learned 2 Lower Caves zone layouts 5220 | -8/Materials | Learned location of Zion (-6) 5240 | -8/Materials | Learned 4 Recycling zone layouts 5272 | -8/Materials | Learned location of 1 exit from Recycling 5312 | -8/Materials | Learned 2 Storage zone layouts 5362 | -8/Materials | Learned 2 Storage zone layouts 5370 | -8/Materials | Entered Factory 5370 | -7/Factory | Evolved 2 slots: Utility x2 5371 | -7/Factory | Identified exit to Factory 5372 | -7/Factory | FarCom data flow suspended 5612 | -7/Factory | Identified exit to Lower Caves 5692 | -7/Factory | Build established: Tank 6902 | -7/Factory | Discovered exit to Factory (range 10) 6908 | -7/Factory | Cargo convoy interrupted 6916 | -7/Factory | Entered another Factory area 6916 | -6/Factory | Evolved 2 slots: Power x1, Propulsion x1 6961 | -6/Factory | Build established: Mutant 7063 | -6/Factory | Identified exit to Garrison 7155 | -6/Factory | Core integrity fell below 50% 7185 | -6/Factory | Lost 10 parts (2p4n1u3w) 7312 | -6/Factory | Sucked down chute 7312 | -6/Factory | Entered Waste 7327 | -6/Waste | EMP discharged 7331 | -6/Waste | Spotted C-40 Crusher 7334 | -6/Waste | Spotted C-40 Crusher 7350 | -6/Waste | Spotted C-40 Crusher 7351 | -6/Waste | Spotted C-40 Crusher 7360 | -6/Waste | Discovered new exit (range 12) 7366 | -6/Waste | Entered Factory 7375 | -6/Factory | Found Launcher Loader 7536 | -6/Factory | Identified exit to Lower Caves 7536 | -6/Factory | Identified exit to Extension 7822 | -6/Factory | Entered Extension 8065 | -6/Extension | Rescued A7 8082 | -6/Extension | Core integrity fell below 20% 8116 | -6/Extension | System corruption reached 10% 8120 | -6/Extension | Lost 3 parts (1p1n1w) 8130 | -6/Extension | System corruption reached 30% 8386 | -6/Extension | Rescued a captive Derelict 8388 | -6/Extension | Rescued a captive Derelict 8830 | -6/Extension | Build established: Commander-Tank 8907 | -6/Extension | Spotted B-75 Beast 8937 | -6/Extension | Spotted B-75 Beast 8938 | -6/Extension | Allies destroyed B-75 Beast 8953 | -6/Extension | Allies destroyed B-75 Beast 8982 | -6/Extension | Lost 7 allies 9168 | -6/Extension | Discovered new exit (range 16) 9171 | -6/Extension | Discovered new exit (range 14) 9205 | -6/Extension | Entered Cetus 9205 | -6/Cetus | Accompanied by 3 allies (A7) 9210 | -6/Cetus | Acquired a Cetus Manufacturing Module code from A7 9246 | -6/Cetus | Spotted Cetus Guard 9246 | -6/Cetus | Spotted Cetus Guard 9263 | -6/Cetus | Allies destroyed Cetus Guard 9270 | -6/Cetus | Allies destroyed Cetus Guard 9271 | -6/Cetus | Allies destroyed Cetus Guard 9273 | -6/Cetus | Allies destroyed Cetus Guard 9290 | -6/Cetus | Discovered new exit (range 38) 9303 | -6/Cetus | Lost 7 allies 9337 | -6/Cetus | Discovered new exit (range 74) 9350 | -6/Cetus | Spotted Cetus Guard 9350 | -6/Cetus | Spotted Cetus Guard 9354 | -6/Cetus | Spotted Cetus Guard 9427 | -6/Cetus | Discovered new exit (range 73) 9448 | -6/Cetus | Allies destroyed Cetus Guard 9455 | -6/Cetus | Allies destroyed Cetus Guard 9455 | -6/Cetus | Spotted Cetus Guard 9462 | -6/Cetus | Allies destroyed Cetus Guard 9466 | -6/Cetus | Allies destroyed Cetus Guard 9511 | -6/Cetus | Build established: Scavenger-Gunner 9779 | -6/Cetus | Started Cetus Manufacturing Module 9804 | -6/Cetus | Manufactured an Enhanced Grunt 9829 | -6/Cetus | Manufactured an Enhanced Grunt 9854 | -6/Cetus | Manufactured an Enhanced Grunt 9857 | -6/Cetus | Met Revision 17 9879 | -6/Cetus | Manufactured an Enhanced Grunt 9904 | -6/Cetus | Manufactured an Enhanced Grunt 9922 | -6/Cetus | Build established: Scavenger-Mutant 9955 | -6/Cetus | Security sweep announced 10019 | -6/Cetus | Entered Archives 10019 | -6/Archives | Accompanied by 6 allies (A7) 10098 | -6/Archives | Discovered new exit (range 14) 10182 | -6/Archives | Discovered new exit (range 16) 10265 | -6/Archives | Build established: Scavenger-Tank 10272 | -6/Archives | Discovered new exit (range 14) 11124 | -6/Archives | Identified exit to Hub_04(d) 11159 | -6/Archives | Build established: Scavenger-Mutant 11173 | -6/Archives | Unable to access archive contents 11319 | -6/Archives | Found Prototype Device 11319 | -6/Archives | Identified Exp. Thermal Shield 11389 | -6/Archives | Identified exit to Factory 11397 | -6/Archives | Entered Factory 11397 | -5/Factory | Evolved 2 slots: Utility x2 11699 | -5/Factory | Build established: Scavenger-Skirmisher 12227 | -5/Factory | Fabricated Y-64 Sentinel? 12379 | -5/Factory | Discovered new exit (range 16) 12422 | -5/Factory | Identified exit to Upper Caves 12838 | -5/Factory | Spotted B-75 Beast 12874 | -5/Factory | Destroyed B-75 Beast 13063 | -5/Factory | Discovered new exit (range 7) 13071 | -5/Factory | Identified exit to Factory 13073 | -5/Factory | Entered another Factory area 13073 | -4/Factory | Evolved 2 slots: Utility x2 13285 | -4/Factory | Repaired Centrium Heavy Treads 13463 | -4/Factory | Repaired Broken Centrium Heavy Treads? 13666 | -4/Factory | Discovered new exit (range 9) 13683 | -4/Factory | Identified exit to Upper Caves 13756 | -4/Factory | Entered Upper Caves 13788 | -4/Upper Caves | Build established: Scavenger-Gunner 13861 | -4/Upper Caves | Learned Research interactive machine intel 14095 | -4/Upper Caves | Discovered new exit (range 9) 14107 | -4/Upper Caves | Identified exit to Upper Caves 14131 | -4/Upper Caves | Entered another Upper Caves area 14292 | -4/Upper Caves | Found DCF Scrap (11 items) 14404 | -4/Upper Caves | Learned Research stockpile data 14557 | -4/Upper Caves | Ambushed by wild Derelicts 14830 | -4/Upper Caves | Spotted 8Y-V7S(f) 14831 | -4/Upper Caves | Encountered a Master Thief 14831 | -4/Upper Caves | Spotted 7Z-QAT(f) 14831 | -4/Upper Caves | Spotted YD-SDV(f) 14832 | -4/Upper Caves | Encountered a Master Thief 14832 | -4/Upper Caves | Encountered a Master Thief 14832 | -4/Upper Caves | Centrium Heavy Treads stolen by Master Thief 14835 | -4/Upper Caves | Centrium Heavy Treads stolen by Master Thief 14837 | -4/Upper Caves | Destroyed 8Y-V7S(f) 14842 | -4/Upper Caves | Centrium Medium Armor Plating stolen by Master Thief 14922 | -4/Upper Caves | Discovered new exit (range 9) 14933 | -4/Upper Caves | Identified exit to Zhirov 15021 | -4/Upper Caves | Entered Zhirov 15021 | -4/Zhirov | Discovered new exit (range 3) 15050 | -4/Zhirov | Met Zhirov 15085 | -4/Zhirov | Learned location of Quarantine (-3) 15085 | -4/Zhirov | Learned location of Testing (-2) 15085 | -4/Zhirov | Learned location of Command (-1) 15095 | -4/Zhirov | Zhirov requested help retrieving the SGEMP Prototype 15119 | -4/Zhirov | Found Alien Artifact 15119 | -4/Zhirov | Identified Integrated Dissipator 15119 | -4/Zhirov | Installed Integrated Dissipator, increased core heat dissipation (+20) 15140 | -4/Zhirov | Found Alien Artifact 15391 | -4/Zhirov | Identified exit to Proximity Caves 15392 | -4/Zhirov | Entered Proximity Caves 15394 | -3/Proximity Caves | Spotter reported a threat 15395 | -3/Proximity Caves | Spotter reported a threat 15515 | -3/Proximity Caves | Spotter reported a threat 15695 | -3/Proximity Caves | Spotted B-86 Titan 15713 | -3/Proximity Caves | Assimilated B-86 Titan with FLK Orb 15728 | -3/Proximity Caves | Spotter reported a threat 15743 | -3/Proximity Caves | Lost 3 parts (1u2w) 15860 | -3/Proximity Caves | Attracted the attention of an 0b10 checkpoint 15898 | -3/Proximity Caves | Build established: Scavenger-Mutant 16107 | -3/Proximity Caves | Discovered new exit (range 8) 16975 | -3/Proximity Caves | Attracted the attention of an 0b10 base 17017 | -3/Proximity Caves | Identified exit to Research 17019 | -3/Proximity Caves | Entered Research 17019 | -3/Research | Evolved 2 slots: Propulsion x2 17021 | -3/Research | Loaded intel: 46 interactive machine locations 17219 | -3/Research | Revision forces began assault on 0b10 17308 | -3/Research | Met up with Revision 17++ 17400 | -3/Research | Build established: Scavenger-Gunner 17628 | -3/Research | Found Exp. Thermal Shield 17719 | -3/Research | Research terminal network offline 17862 | -3/Research | Build established: Hacker-Gunner 17980 | -3/Research | Discovered new exit (range 9) 17998 | -3/Research | Identified exit to Armory 18332 | -3/Research | Discovered new exit (range 13) 18345 | -3/Research | Identified exit to Research 18449 | -3/Research | Discovered exit to Research (range 14) 18645 | -3/Research | Found Fusion Bomb Launcher 18841 | -3/Research | Spotted Striker 18893 | -3/Research | Discovered exit to Research (range 10) 18991 | -3/Research | Spotted Executioner 19010 | -3/Research | Destroyed Executioner 19033 | -3/Research | Lost 4 allies 19035 | -3/Research | Destroyed Striker 19237 | -3/Research | Found Adv. Powered Armor 19359 | -3/Research | Discovered new exit (range 5) 19364 | -3/Research | Identified exit to Quarantine 19605 | -3/Research | Build established: Scavenger-Tank 20692 | -3/Research | Entered Quarantine 20701 | -3/Quarantine | Found Alien Artifact 20701 | -3/Quarantine | Identified Core Reset Matrix 20701 | -3/Quarantine | Identified Transdimensional Reconstructor 20701 | -3/Quarantine | Used Core Reset Matrix 20705 | -3/Quarantine | Detected hypermatrix surge 20705 | -3/Quarantine | Sensed 17 artifacts in vicinity 20759 | -3/Quarantine | Found Phase Redirector 20923 | -3/Quarantine | Found Sigix Broadsword 21087 | -3/Quarantine | Found Subatomic Replicator 21203 | -3/Quarantine | Build established: Scavenger-Mutant 21269 | -3/Quarantine | Found Phase Armor 21391 | -3/Quarantine | Lost 5 parts (1p3u1w) 21462 | -3/Quarantine | Found Terrabomb 21483 | -3/Quarantine | Found Terrabomb 21505 | -3/Quarantine | Used Terrabomb 21538 | -3/Quarantine | Found Matter Drive 21562 | -3/Quarantine | Found Core Cannon 21587 | -3/Quarantine | Found Hpw. Transdimensional Reconstructor 21592 | -3/Quarantine | Found Transdimensional Reconstructor 21596 | -3/Quarantine | Found Transdimensional Reconstructor 21634 | -3/Quarantine | Found Hpw. Transdimensional Reconstructor 21840 | -3/Quarantine | System corruption reached 10% 21897 | -3/Quarantine | Build established: Alien-Mutant 21903 | -3/Quarantine | Discovered exit to Research (range 16) 21947 | -3/Quarantine | Entered Research 21947 | -2/Research | Evolved 2 slots: Propulsion x2 22446 | -2/Research | Identified exit to Testing 22542 | -2/Research | Spotted B-90 Cyclops 22543 | -2/Research | Warped through subspace 22653 | -2/Research | Spotted B-90 Cyclops 22680 | -2/Research | Warped through subspace 22785 | -2/Research | Entered Testing 22800 | -2/Testing | Found Prototype Hackware 22881 | -2/Testing | Identified Ghost Barrier 22885 | -2/Testing | Found Prototype Leg 22997 | -2/Testing | Found Prototype Processor 22997 | -2/Testing | Identified Spectral Analyzer 23040 | -2/Testing | Found Prototype Device 23040 | -2/Testing | Identified Exp. Shield Generator 23062 | -2/Testing | Garrison activated, responded to threat 23067 | -2/Testing | Warped through subspace 23123 | -2/Testing | Discovered new exit (range 12) 23325 | -2/Testing | Spotted Fortress 23344 | -2/Testing | Discovered new exit (range 6) 23347 | -2/Testing | Entered Section 7 23348 | -2/Section 7 | Sensed 24 artifacts in vicinity 23371 | -2/Section 7 | Found Integrated Reactor 23371 | -2/Section 7 | Installed Integrated Reactor, increased core energy generation (+10) 23387 | -2/Section 7 | Found Integrated Dissipator 23387 | -2/Section 7 | Installed Integrated Dissipator, increased core heat dissipation (+20) 23407 | -2/Section 7 | Spotted S7 Guard 23416 | -2/Section 7 | Found Core Physics Calibrator 23455 | -2/Section 7 | Spotted S7 Guard 23460 | -2/Section 7 | Found Core Regenerator 23464 | -2/Section 7 | Assimilated Y-72 Warden with FLK Orb 23471 | -2/Section 7 | Spotted S7 Guard 23472 | -2/Section 7 | Spotted S7 Guard 23479 | -2/Section 7 | Found Core Membrane 23479 | -2/Section 7 | Installed Core Membrane, gained immunity to corruption 23480 | -2/Section 7 | Warped through subspace 23493 | -2/Section 7 | Found Transdimensional Reconstructor 23495 | -2/Section 7 | Found Transdimensional Reconstructor 23501 | -2/Section 7 | Found Terrabomb 23503 | -2/Section 7 | Found Terrabomb 23507 | -2/Section 7 | Spotted Executioner 23507 | -2/Section 7 | Spotted Executioner 23521 | -2/Section 7 | Build established: Hacker-Sprinter 23544 | -2/Section 7 | Crushed by falling debris 23617 | -2/Section 7 | Found LRC Storage 23617 | -2/Section 7 | Installed LRC Storage, increased inventory capacity (+2) 23624 | -2/Section 7 | Found LRC Energy Well 23624 | -2/Section 7 | Installed LRC Energy Well, increased energy storage capacity (+250) 23643 | -2/Section 7 | Found Core Expander 23644 | -2/Section 7 | Found Core Expander 23646 | -2/Section 7 | Found Core Expander 23650 | -2/Section 7 | Used Terrabomb 23654 | -2/Section 7 | Crushed by falling debris 23656 | -2/Section 7 | Crushed by falling debris 23663 | -2/Section 7 | Found Spacefold Activator 23677 | -2/Section 7 | Assimilated H-81 Overseer with FLK Orb 23721 | -2/Section 7 | Spotted Alpha 7 23722 | -2/Section 7 | Spotted Alpha 7 23723 | -2/Section 7 | Warped through subspace 23724 | -2/Section 7 | Core integrity fell below 50% 23724 | -2/Section 7 | Found Integrity Redistributor 23750 | -2/Section 7 | Integrated with Sigix Exoskeleton 23756 | -2/Section 7 | Spotted Executioner 23862 | -2/Section 7 | Installed Core Expander, added new Power slot 23863 | -2/Section 7 | Installed Core Expander, added new Propulsion slot 23864 | -2/Section 7 | Installed Core Expander, added new Power slot 23988 | -2/Section 7 | Spotted Striker 24017 | -2/Section 7 | Found Sigix Sheargun 24019 | -2/Section 7 | Found Sigix Sheargun 24058 | -2/Section 7 | Build established: Alien-Sigix 24132 | -2/Section 7 | Warped through subspace 24167 | -2/Section 7 | Assimilated Executioner with FLK Orb 24180 | -2/Section 7 | Found Prototype Processor 24180 | -2/Section 7 | Identified Exp. Targeting Computer 24184 | -2/Section 7 | Found Prototype Device 24288 | -2/Section 7 | Core integrity fell below 20% 24288 | -2/Section 7 | Spotted Investigator 24291 | -2/Section 7 | Found Integrated Thermoelectric Network 24298 | -2/Section 7 | Discovered new exit (range 18) 24312 | -2/Section 7 | Core destroyed Last Messages --------------- 24288_ C-30 ARC bursts open, deploying its payload. 24288_ G-73 Enforcer unfolds itself. 24288_ L-61 Swordsman unfolds itself. 24288_ Investigator unfolds itself. 24288_ Investigator: "PRIMARY THREAT IDENTIFIED. CONTAINMENT PROTOCOL APPLICABLE." 24288_ Spacefolded through Suspension Chamber. 24289_ Slug penetrates Wall. 24290_ Spacefolded through Suspension Chamber. 24291_ Dropped Prototype Device. 24291_ Prototype Device crushed and broken. 24291_ Acquired Integrated Thermoelectric Network. 24292_ Quantum Shear penetrates Suspension Chamber. 24292_ Suspension Chamber breached. 24293_ Suspension Chamber collapses. 24295_ Spacefolded through Wall. 24298_ EXIT=FOUND 24301_ Spacefolded through Wall. 24307_ System corrupted: Component data lost. 24312_ Spacefolded through Wall. Map ----- +----------------------------------------------------+ | ??? + """ ############ " " " " # | | ???? ### "" ############ """ """ # | | ????###### ############ # | | ????##########+################### / # | | ???? ##### ################### # | | ????"" =##### ################### # | | ???""" ##### ######### ] ! ############+#### | | ???""" ##### ########## | | ??? + [ ! %! % | | ?? """ ######## %% | | ?? """ ######## ########## | | ?? """ ###########+### ###########+######"" | | ?? ## ############# " | | ??######### ############# " | | ? ! ## ! ############# "" " | | ?? ## == ############# " " " | | ?? ## / == ############# """ " | | ?? ## =! #T"########## " "" " | | ??###+################## "########## """"" " | | ?? ######## # | | ? ######## # | | ?? Y ######## ## | | ?? Y Y ######## ## | | ??##################Y### A< ######## ## | | ??############ # #####################? | | ??############ # X ############?????????? | | ???########### ##################????????? | | ???###########!!Y #################?????????? | | ???########## !! """ ##################????????? | | ????########## """ ##################????????? | | ????########## """ #################?????????? | | ????########## ! #################?????????? | | ?????###################################?????????? | | | | | | | | | | | | | | | | | | | | | | | | | | | | | | | | | | | +----------------------------------------------------+ Best States ------------- Heat Dissipation 190 Energy Generation 57 Energy Capacity 1580 Matter Stores 469 Matter Capacity 550 Sight Range 20 Robot Scan Range 18 Terrain Scan Range 20 Terrain Scan Density 10 ECM Strength 1 Jamming Range 14 Additional Mass Support 9 Base Temperature (-) 100 Armor Coverage 1250 Resistance: KI 50 Resistance: TH 50 Resistance: EX 50 Resistance: EM 50 Resistance: I 50 Resistance: S 50 Resistance: P 50 Utility Shielding 66 Weapon Shielding 90 Point Defense Rating 240 Weapon Cycling 15 Evasion (%) 69 Targeting Accuracy 12 Melee Accuracy 5 Launcher Accuracy 40 Target Analysis 12 Core Analysis 6 Recoil Reduction 6 Energy Filtering 30 Particle Charging 42 Kinecelleration 40 Offensive Hacking 26 Defensive Hacking 30 Item Schematics ----------------- Imp. Plasma Cutter | -3/Quarantine | Scanalyzed Cld. Field Propulsion Drive | -2/Research | Scanalyzed Robot Schematics ------------------ None Fabricated ------------ Y-64 Sentinel | x2 | -5/Factory | Preloaded Alien Tech Used ----------------- Integrated Dissipator Core Reset Matrix Terrabomb Phase Redirector Sigix Broadsword Transdimensional Reconstructor High-powered Transdimensional Reconstructor Core Cannon Integrated Reactor Core Membrane LRC Storage LRC Energy Well Subatomic Replicator Matter Drive Sigix Exoskeleton Sigix Sheargun Core Expander Spacefold Activator Achievements -------------- Nope Challenges ------------ None Game ------ Seed MultinovaChainCoupler Manual? 0 Play Time 04:14:47 Cumulative 340.0 hours Start 2024.10.10 @ 22:25:45 End 2024.10.12 @ 02:32:10 Sessions 5 Manual Loads 0 Difficulty Rogue Special Mode None Game No. 258 Rogue 258 Adventurer 0 Explorer 0 Win Type - Total 3 Types 1/0/1/1/0/0/0/0/0 Lore% 75 Gallery% 80 Achievement% 63 Wizard Run 0 Options --------- Layout 2 ASCII 0 Keyboard 1 Movement Vi Keybinds 0 Fullscreen 2 Font 32/SmallcapsGlow Map View 77x44 Zoom Use 0% Tactical HUD 1 Map Filters NONE Filters NONE Steam 1 RUN: 05c2862e-43b6-43c7-af43-d6eddcf59d50